bitfinex/quotes_ETHUSD_20260213
["timestamp","ask_amount","ask_price","bid_price","bid_amount"]
[1770990613757,1.26601509,1974.7,1973.7,2.84661275]
[1770990613942,0.47010309,1974.6,1973.3,2.17991329]
[1770990614146,0.47010309,1974.6,1973.6,1.58]
[1770990615767,0.47010309,1974.6,1973.3,2.17991329]
[1770990615768,1.26627158,1974.3,1973.4,0.001]
[1770990615964,0.47010309,1974.2,1973.4,0.001]
[1770990617873,0.47010309,1974.0,1973.3,0.001]
[1770990618037,0.47010309,1973.8,1973.3,0.001]
[1770990618967,0.913,1973.8,1973.1,0.001]
[1770990619163,0.913,1973.8,1972.5,0.001]
[1770990619164,0.47010309,1973.7,1972.5,0.001]
[1770990619363,0.47010309,1973.7,1972.5,1.26842561]
[1770990620064,1.26672071,1973.6,1972.5,1.73481996]
[1770990621468,1.26672071,1973.6,1972.6,0.46639435]
[1770990621771,1.26672071,1973.6,1972.5,1.26842561]
[1770990621936,5.06688285,1973.7,1972.7,1.26729862]
[1770990623086,5.53698594,1973.7,1972.6,2.84331672]
[1770990623367,0.47010309,1973.5,1972.5,0.001]
[1770990623568,1.92810309,1973.4,1972.5,0.001]
[1770990623741,1.92810309,1973.4,1972.5,1.26840589]
[1770990623937,1.92810309,1973.4,1972.5,0.001]
[1770990624559,1.26691329,1973.3,1972.5,0.001]
[1770990625258,1.73701638,1973.3,1972.5,0.001]
[1770990628077,0.47010309,1973.2,1972.5,0.001]
[1770990628656,0.47010309,1973.0,1972.5,0.001]
[1770990629043,1.26704171,1973.1,1972.5,0.001]
[1770990629674,5.0677583,1973.3,1972.6,0.001]
[1770990630561,1.26691329,1973.3,1972.6,0.001]
[1770990631075,1.458,1973.4,1972.6,0.47507097]
[1770990631253,2.72485776,1973.4,1972.6,0.47507097]
[1770990632785,0.002,1973.5,1972.7,1.26729862]
[1770990633074,0.002,1973.6,1973.0,0.47407097]
[1770990633647,0.002,1973.6,1972.8,2.482]
[1770990633648,0.00153886,1974.0,1973.2,0.47407097]
[1770990633847,0.915,1974.4,1973.3,0.47407097]
[1770990634054,2.18122676,1974.4,1973.4,2.04307097]
[1770990634870,0.915,1974.4,1973.5,1.74085586]
[1770990635075,2.18121015,1974.4,1973.5,1.74085586]
[1770990635673,0.915,1974.4,1973.6,0.47407097]
[1770990635876,0.002,1974.4,1973.6,0.47407097]
[1770990636058,0.002,1974.4,1973.8,0.4660774]
[1770990636259,0.002,1974.7,1973.8,0.4660774]
[1770990636576,1.75694347,1974.7,1973.5,1.73286229]
[1770990636750,1.75694347,1974.7,1973.6,7.031893]
[1770990636949,1.26803804,1974.7,1973.7,1.26665653]
[1770990637276,1.26803804,1974.7,1973.7,1.73273393]
[1770990637483,1.26803804,1974.7,1973.8,0.4660774]
[1770990637781,1.26801885,1974.7,1973.9,1.567]
[1770990637951,1.26801885,1974.7,1973.7,1.26665653]
[1770990638284,1.75692428,1974.7,1973.6,2.83367005]
[1770990638576,1.26801885,1974.7,1973.6,3.29974745]
[1770990638766,1.26801885,1974.7,1973.7,0.4660774]
[1770990639279,0.002,1974.7,1973.8,1.26659235]
[1770990639485,0.002,1974.7,1973.9,0.4660774]
[1770990640490,0.002,1974.8,1974.1,0.4660774]
[1770990640685,5.55094586,1975.5,1974.3,0.4660774]
[1770990640686,5.06204501,1975.5,1974.3,0.4660774]
[1770990640862,1.2655024,1975.5,1974.4,2.0330774]
[1770990641063,1.2655024,1975.5,1974.4,0.4660774]
[1770990641271,1.2655024,1975.5,1974.5,1.567]
[1770990641789,1.457,1975.6,1974.5,2.83310626]
[1770990641977,0.002,1974.6,1974.5,2.83310626]
[1770990642488,0.002,1974.6,1974.5,2.83210626]
[1770990642688,0.002,1974.6,1974.5,1.26610626]
[1770990642870,0.002,1974.6,1974.2,2.17929391]
[1770990643069,0.002,1974.6,1974.2,2.1793289]
[1770990643275,0.002,1974.6,1974.2,0.913]
[1770990643456,0.002,1974.6,1974.1,1.26635066]
[1770990643886,0.002,1974.6,1974.0,2.83497766]
[1770990644060,0.002,1974.6,1974.0,1.26797766]
[1770990645470,0.002,1974.6,1974.0,1.73405506]
[1770990645793,1.36813428,1974.6,1974.0,0.00153886]
[1770990647605,0.102,1974.6,1974.0,0.00153886]
[1770990647892,1.36808158,1974.6,1974.0,0.00153886]
[1770990648061,0.102,1974.6,1974.0,0.00153886]
[1770990649358,1.3680978,1974.6,1974.0,0.00153886]
[1770990649894,0.102,1974.6,1974.0,0.00153886]
[1770990651094,1.3680824,1974.6,1974.0,0.00153886]
[1770990651789,1.85698783,1974.6,1974.0,0.00153886]
[1770990652494,0.48890543,1974.4,1974.0,0.00153886]
[1770990653001,0.48890543,1974.4,1973.6,0.001]
[1770990653216,1.3680824,1974.6,1973.6,0.001]
[1770990653792,1.85698783,1974.6,1973.6,0.001]
[1770990654098,0.48890543,1974.4,1973.6,0.001]
[1770990654521,1.26627158,1974.3,1973.6,0.001]
[1770990654720,1.75517701,1974.3,1973.6,0.001]
[1770990654906,0.48890543,1974.2,1973.6,0.001]
[1770990656291,1.26625651,1974.4,1973.6,0.001]
[1770990658991,1.75516194,1974.4,1973.6,0.001]
[1770990659193,0.48890543,1974.3,1973.6,0.001]
[1770990660092,3.63217804,1974.5,1973.6,0.001]
[1770990660639,0.49414434,1974.4,1973.6,0.001]
[1770990661432,1.26817804,1974.5,1973.6,0.001]
[1770990661634,1.449,1974.4,1973.6,0.001]
[1770990662319,1.449,1974.4,1973.6,0.45535312]
[1770990662503,1.449,1974.4,1973.7,1.26665653]
[1770990663041,0.002,1974.5,1973.7,1.26665653]
[1770990663250,0.002,1974.7,1974.0,0.45435312]
[1770990664730,0.002,1974.7,1974.1,1.26639987]
[1770990665027,0.002,1974.7,1973.8,1.26652819]
[1770990665228,0.002,1974.7,1973.7,2.82161338]
[1770990665421,0.49614434,1974.7,1973.7,2.82161338]
[1770990665618,0.002,1974.7,1973.7,3.2759665]
[1770990665823,0.002,1974.7,1973.8,0.45435312]
[1770990666025,0.002,1974.7,1973.7,2.82161338]
[1770990666903,1.26801509,1974.7,1973.8,0.001]
[1770990667136,0.002,1974.6,1973.8,0.001]
[1770990667933,0.002,1974.6,1973.8,0.45535312]
[1770990668432,5.0648319,1975.0,1973.8,0.45535312]
[1770990668433,0.00153886,1975.0,1974.1,4.36701612]
[1770990668613,0.00153886,1975.0,1974.2,1.555]
[1770990668819,0.00153886,1975.0,1974.2,2.00935312]
[1770990669043,0.00153886,1975.0,1974.2,1.26629663]
[1770990669537,0.00153886,1975.0,1974.2,1.72064975]
[1770990670014,0.00153886,1975.0,1974.3,0.45435312]
[1770990671117,0.00153886,1975.0,1974.4,1.72056057]
[1770990671319,0.00153886,1975.0,1974.4,1.26620745]
[1770990671524,0.00153886,1975.0,1974.1,6.61948084]
[1770990672415,0.00153886,1975.0,1973.9,6.61987676]
[1770990672817,0.4956832,1975.0,1973.8,0.001]
[1770990673016,0.4956832,1975.0,1973.8,1.26759033]
[1770990673237,1.76003122,1974.9,1973.8,0.001]
[1770990673819,1.73537392,1974.9,1973.8,0.001]
[1770990674219,1.24122958,1974.9,1973.8,0.45535312]
[1770990674839,1.26741037,1975.0,1973.8,0.45535312]
[1770990675008,1.76155471,1975.0,1973.8,0.45535312]
[1770990675439,1.76155471,1975.0,1973.9,1.26652819]
[1770990675739,0.49414434,1974.9,1973.9,1.26652819]
[1770990676807,1.26741037,1975.0,1973.9,1.26652819]
[1770990677013,0.00153886,1975.0,1974.1,0.45435312]
[1770990677414,0.00153886,1975.0,1974.2,1.26633573]
[1770990679025,0.002,1974.8,1974.1,1.2663506]
[1770990680579,0.002,1974.8,1974.1,1.72070372]
[1770990681664,0.002,1974.8,1974.0,1.26641642]
[1770990682247,0.49614434,1974.8,1973.9,6.61048144]
[1770990682421,0.49614434,1974.8,1973.8,5.06724922]
[1770990682422,0.49614434,1974.8,1973.8,1.26758367]
[1770990683630,1.26601509,1974.7,1973.8,0.001]
[1770990684350,1.26795514,1974.8,1973.8,0.45535312]
[1770990684552,1.26795514,1974.8,1973.8,0.001]
[1770990685347,1.21795514,1974.8,1973.8,0.45535312]
[1770990686453,2.65595514,1974.8,1973.9,1.26652819]
[1770990686623,2.65595514,1974.8,1973.9,1.72088131]
[1770990687526,1.438,1974.8,1974.0,2.00835312]
[1770990687835,1.438,1974.8,1974.0,1.554]
[1770990688631,1.26601509,1974.7,1974.0,1.554]
[1770990688854,1.26601509,1974.7,1974.0,2.8204609]
[1770990689054,1.26601509,1974.7,1973.8,1.26754776]
[1770990689620,0.49414434,1974.6,1973.8,0.001]
[1770990690458,0.49414434,1974.6,1973.8,1.26758836]
[1770990690661,1.26614332,1974.5,1973.8,0.001]
[1770990690958,0.45806227,1974.4,1973.8,0.001]
[1770990691159,1.89406227,1974.3,1973.8,0.001]
[1770990691332,1.436,1974.3,1973.8,0.001]
[1770990691735,1.436,1974.3,1974.1,0.001]
[1770990692264,1.89406227,1974.3,1974.0,0.001]
[1770990692765,1.26633573,1974.2,1974.0,0.001]
[1770990693535,1.26633573,1974.2,1973.8,0.001]
[1770990695578,1.724398,1974.2,1973.7,0.001]
[1770990696842,0.47209883,1974.1,1973.5,0.001]
[1770990697045,1.26633573,1974.2,1973.5,0.001]
[1770990697242,1.443,1974.1,1973.5,0.001]
[1770990697778,2.17928151,1974.3,1973.5,0.47652231]
[1770990698286,0.913,1974.3,1973.5,0.47652231]
[1770990698482,1.443,1974.4,1973.5,0.47652231]
[1770990698773,1.26605308,1974.7,1973.5,0.47652231]
[1770990698941,2.71000432,1974.8,1973.7,0.47552231]
[1770990699952,2.71000432,1974.8,1973.8,1.74211466]
[1770990700162,2.71000432,1974.8,1973.9,0.47552231]
[1770990700486,2.70995378,1974.8,1973.9,0.47552231]
[1770990700970,1.444,1974.8,1973.9,0.47552231]
[1770990701168,2.70996297,1974.8,1973.9,0.47552231]
[1770990701948,1.444,1974.8,1974.1,0.47552231]
[1770990702491,2.70995233,1974.8,1974.0,1.26646403]
[1770990702662,1.444,1974.8,1974.0,1.26646403]
[1770990702848,2.70995609,1974.8,1974.0,1.26646403]
[1770990703783,3.18205492,1974.8,1973.8,1.74211094]
[1770990704454,3.18205492,1974.8,1973.8,1.26658863]
[1770990704655,0.47209883,1974.7,1973.6,1.26672071]
[1770990704857,0.47209883,1974.7,1973.7,0.001]
[1770990705173,0.002,1974.7,1973.7,0.47652231]
[1770990706276,0.002,1974.7,1973.8,1.74211466]
[1770990707585,0.002,1974.7,1973.9,0.47552231]
[1770990707958,0.002,1974.7,1973.8,1.26659235]
[1770990708167,0.002,1974.7,1973.7,5.54300918]
[1770990708485,0.002,1974.7,1973.8,0.47552231]
[1770990710189,0.002,1974.7,1973.9,1.7420505]
[1770990710662,0.002,1974.7,1974.0,0.47552231]
[1770990711371,0.002,1974.7,1973.9,1.26652819]
[1770990711694,0.002,1974.7,1973.9,1.7420505]
[1770990713260,0.002,1974.7,1973.9,1.26652819]
[1770990715202,0.002,1974.7,1973.9,0.47552231]
[1770990715382,0.002,1974.7,1973.7,5.06762052]
[1770990715785,0.002,1974.7,1973.7,5.54314283]
[1770990716800,0.002,1974.7,1973.8,0.47552231]
[1770990717406,0.002,1974.6,1973.9,1.26652819]
[1770990717720,0.002,1974.6,1973.8,1.2665476]
[1770990717894,0.47409883,1974.6,1973.7,0.001]
[1770990719374,1.26614332,1974.5,1973.7,0.001]
[1770990719576,0.47209883,1974.4,1973.7,0.001]
[1770990719806,1.435,1974.3,1973.7,0.001]
[1770990720686,0.49531225,1974.2,1973.7,0.001]
[1770990721090,0.49531225,1974.2,1973.5,0.001]
[1770990721606,0.49531225,1974.0,1973.5,0.001]
[1770990721978,0.49531225,1974.0,1973.0,0.00153886]
[1770990723376,1.93131225,1973.9,1973.0,0.00153886]
[1770990723588,1.26659235,1973.8,1973.0,0.00153886]
[1770990724695,1.26657535,1973.9,1973.0,0.49648503]
[1770990724906,0.913,1974.3,1973.0,0.49648503]
[1770990725108,2.17930629,1974.3,1973.2,0.49494617]
[1770990725309,3.61427923,1974.3,1973.2,0.49494617]
[1770990725481,2.348,1974.3,1973.2,0.49494617]
[1770990725786,3.61427274,1974.3,1973.5,0.49494617]
[1770990725987,3.61427274,1974.3,1973.4,1.26684909]
[1770990726194,2.348,1974.3,1973.4,1.76179526]
[1770990726388,3.61428422,1974.3,1973.4,1.76179526]
[1770990727013,4.10959647,1974.3,1973.4,1.26684909]
[1770990727304,4.10959647,1974.3,1973.2,1.26697749]
[1770990727503,3.61428422,1974.3,1973.3,0.49494617]
[1770990727705,3.61428422,1974.3,1973.4,1.76179526]
[1770990728883,3.61428422,1974.3,1973.6,0.001]
[1770990729084,2.348,1974.3,1973.6,0.49594617]
[1770990729502,2.70018309,1974.5,1973.6,0.49594617]
[1770990729702,3.19549534,1974.5,1973.6,0.001]
[1770990730217,2.70018309,1974.5,1973.6,1.26770762]
[1770990730727,1.26812829,1974.6,1973.7,0.49494617]
[1770990731127,0.002,1974.6,1973.7,0.49494617]
[1770990731929,0.002,1974.6,1973.9,0.49494617]
[1770990732431,0.002,1974.9,1974.1,0.49494617]
[1770990732817,0.002,1974.9,1974.2,0.49494617]
[1770990733354,0.002,1974.9,1974.2,0.48814677]
[1770990733502,1.433,1975.2,1974.2,0.49494617]
[1770990733700,6.4958346,1975.2,1974.2,0.49494617]
[1770990733900,2.69874402,1975.2,1974.2,0.49494617]
[1770990734205,2.69874402,1975.2,1974.3,1.76121775]
[1770990734602,2.17876505,1975.1,1974.3,1.76121775]
[1770990734807,2.17876505,1975.1,1974.3,1.26627158]
[1770990735341,2.17876368,1975.1,1974.3,1.26627158]
[1770990735500,2.17875905,1975.1,1974.3,1.76121775]
[1770990735902,0.913,1975.1,1974.3,1.76121775]
[1770990736139,2.17876059,1975.1,1974.3,1.76121775]
[1770990736341,2.17876917,1975.1,1974.3,1.76121775]
[1770990736502,2.17876917,1975.1,1974.3,1.26627158]
[1770990736820,2.67408142,1975.1,1974.1,2.79334726]
[1770990737830,2.67408142,1975.1,1974.1,1.26634726]
[1770990738650,0.49531225,1975.0,1974.1,1.26634726]
[1770990739426,2.17876917,1975.1,1974.1,1.76129343]
[1770990739626,2.17876917,1975.1,1974.2,0.49494617]
[1770990740625,2.17876917,1975.1,1974.3,1.76121775]
[1770990740824,0.002,1975.0,1974.3,1.76121775]
[1770990742744,0.002,1975.0,1974.4,0.49494617]
[1770990744615,0.002,1975.0,1974.5,1.76108949]
[1770990747250,0.002,1975.0,1974.6,0.49494617]
[1770990748951,0.002,1975.1,1974.8,0.49494617]
[1770990749132,0.002,1975.1,1974.7,2.79201509]
[1770990751257,0.002,1975.1,1974.6,8.85406036]
[1770990751258,0.002,1975.1,1974.6,1.26603294]
[1770990752253,0.002,1975.4,1974.7,0.48286492]
[1770990753640,0.002,1975.4,1974.8,1.26595098]
[1770990754153,0.002,1975.4,1974.9,0.48286492]
[1770990754528,0.002,1975.1,1974.9,0.48286492]
[1770990754739,0.002,1975.4,1974.9,0.48286492]
[1770990755135,0.002,1975.4,1975.0,0.48286492]
[1770990755858,0.002,1975.4,1975.1,1.26575869]
[1770990756031,5.52578283,1975.9,1975.2,0.48286492]
[1770990756032,1.26724923,1975.9,1975.2,0.48286492]
[1770990756230,1.26724923,1975.9,1975.1,1.26575869]
[1770990756428,0.002,1975.9,1975.1,1.26575869]
[1770990757031,0.002,1975.9,1975.1,1.7183238]
[1770990757433,1.2672505,1975.9,1975.1,1.7183238]
[1770990757843,0.002,1975.9,1975.1,1.7183238]
[1770990760239,0.002,1975.9,1975.2,0.45256511]
[1770990760438,0.00153886,1976.0,1975.4,0.45256511]
[1770990761142,0.912,1976.5,1975.6,0.45256511]
[1770990761346,0.47535909,1976.4,1975.3,0.45256511]
[1770990761560,0.47535909,1976.4,1975.6,1.53]
[1770990761765,0.47535909,1976.4,1975.1,1.7183238]
[1770990761968,0.47535909,1976.4,1975.1,2.6303238]
[1770990762267,1.74034922,1976.3,1975.3,1.26563053]
[1770990762491,1.26499013,1976.3,1975.3,1.26563053]
[1770990762764,0.47535909,1976.2,1975.3,2.79463053]
[1770990763673,0.47535909,1976.2,1975.3,1.26563053]
[1770990764249,1.74047725,1976.1,1975.3,1.26563053]
[1770990764451,0.47535909,1976.0,1975.3,1.26563053]
[1770990764867,0.47535909,1976.0,1975.1,1.26575869]
[1770990765200,1.26511816,1976.1,1975.2,0.45256511]
[1770990765546,0.47535909,1976.1,1975.1,1.26575869]
[1770990765750,0.47535909,1976.1,1975.1,2.79375869]
[1770990765952,0.47535909,1976.1,1975.2,0.001]
[1770990766264,0.47735909,1976.1,1975.2,0.001]
[1770990766471,0.47535909,1975.9,1975.2,0.001]
[1770990768663,0.47535909,1975.7,1975.2,0.001]
[1770990769558,1.413,1975.8,1975.2,0.001]
[1770990770887,2.67831807,1975.8,1975.2,0.001]
[1770990771074,3.15367716,1975.8,1975.2,0.001]
[1770990771388,0.47535909,1975.7,1975.2,0.001]
[1770990773060,1.26542391,1975.7,1975.2,0.001]
[1770990773589,2.67836169,1975.8,1975.2,0.001]
[1770990773784,1.26713808,1976.1,1975.2,0.45356511]
[1770990774289,0.002,1976.1,1975.2,0.45356511]
[1770990774486,0.002,1976.1,1975.4,0.45256511]
[1770990774889,1.26711839,1976.1,1975.2,0.001]
[1770990775087,0.002,1976.1,1975.3,1.26563053]
[1770990775597,0.002,1976.1,1975.4,0.45256511]
[1770990777267,0.002,1976.1,1975.5,1.2655024]
[1770990777469,0.002,1976.1,1975.5,1.71806751]
[1770990777871,0.002,1976.1,1975.6,0.45256511]
[1770990779265,0.002,1976.1,1975.7,1.26537429]
[1770990779466,0.002,1976.0,1975.8,0.45256511]
[1770990780570,0.002,1976.0,1975.6,2.78543834]
[1770990780902,0.002,1976.0,1975.4,5.06214787]
[1770990781571,0.002,1976.1,1975.5,0.46867664]
[1770990781766,0.002,1976.2,1975.6,0.46867664]
[1770990783390,0.24275753,1976.6,1975.8,0.46867664]
[1770990783592,1.26609437,1977.0,1976.0,0.46867664]
[1770990784367,1.73660692,1977.0,1976.0,0.46867664]
[1770990784571,1.73660692,1977.0,1976.0,1.99067664]
[1770990785103,1.26609437,1977.0,1976.0,1.99067664]
[1770990785301,0.00153886,1977.0,1976.1,1.7337948]
[1770990785603,0.00153886,1977.0,1976.3,0.46867664]
[1770990786176,0.00153886,1978.0,1976.5,0.46867664]
[1770990786381,1.26396683,1977.9,1976.7,0.46867664]
[1770990787109,1.26396683,1977.9,1976.6,1.52]
[1770990787110,0.47051255,1977.8,1976.6,1.52]
[1770990787293,0.47051255,1977.8,1976.5,1.52]
[1770990787469,1.26409465,1977.7,1976.6,1.26479813]
[1770990788012,1.26409465,1977.7,1976.6,2.78479813]
[1770990788215,1.26409465,1977.7,1976.7,0.46867664]
[1770990788372,1.26408125,1977.8,1976.7,0.46867664]
[1770990789198,1.7345938,1977.8,1976.7,1.98867664]
[1770990789611,1.26332811,1978.9,1977.7,0.46867664]
[1770990789849,1.26332811,1978.9,1977.8,1.98767664]
[1770990790494,0.00153886,1979.0,1977.8,1.98767664]
[1770990790700,1.26481048,1979.0,1977.8,1.98767664]
[1770990790994,0.47051255,1978.9,1977.0,0.00153886]
[1770990791233,0.47051255,1978.7,1977.3,5.898921]
[1770990791398,0.47051255,1978.7,1977.5,0.46867664]
[1770990791596,0.002,1978.4,1977.6,1.26415857]
[1770990792127,0.002,1978.4,1977.5,1.26417351]
[1770990792511,0.47251255,1978.4,1977.1,1.26447827]
[1770990794032,0.47251255,1978.4,1977.0,5.05955451]
[1770990794033,0.47051255,1978.2,1977.0,1.26608109]
[1770990794331,0.47051255,1978.2,1977.0,1.73475773]
[1770990794535,0.47051255,1978.2,1977.0,1.26608109]
[1770990795807,0.911,1978.1,1977.0,1.26608109]
[1770990796007,2.66590293,1978.0,1977.0,1.26608109]
[1770990797133,0.47051255,1977.9,1977.0,0.00153886]
[1770990797946,1.73454329,1977.8,1977.0,0.00153886]
[1770990798633,2.66601863,1977.9,1977.0,0.00153886]
[1770990800313,0.47051255,1977.8,1977.0,0.00153886]
[1770990800538,2.66601863,1977.9,1977.0,0.00153886]
[1770990801612,3.13653118,1977.9,1977.0,0.00153886]
[1770990802317,0.47051255,1977.8,1977.0,0.00153886]
[1770990803853,0.47251255,1977.8,1977.0,0.00153886]
[1770990804559,1.26409465,1977.7,1977.0,0.00153886]
[1770990806067,0.47051255,1977.6,1977.0,0.00153886]
[1770990807168,0.47051255,1977.4,1976.4,1.26592612]
[1770990807370,1.4,1977.3,1976.4,1.26592612]
[1770990808150,1.87051255,1977.3,1976.4,0.001]
[1770990808453,0.47051255,1977.2,1976.4,0.001]
[1770990809176,1.26447827,1977.1,1976.4,0.001]
[1770990809680,1.73499082,1977.1,1976.4,0.001]
[1770990809880,0.47051255,1977.0,1976.4,0.001]
[1770990811439,1.2646062,1976.9,1976.4,0.001]
[1770990811658,1.399,1976.8,1976.4,0.001]
[1770990813378,1.26479813,1976.6,1976.0,0.00153886]
[1770990813544,2.66371604,1976.8,1976.0,0.00153886]
[1770990813745,1.401,1976.7,1976.0,0.46416058]
[1770990815276,5.05778771,1977.2,1976.0,0.46416058]
[1770990815485,2.6655242,1977.1,1976.2,0.46262172]
[1770990815972,1.401,1977.1,1976.2,0.46262172]
[1770990816357,2.66547974,1977.1,1976.2,0.46262172]
[1770990816756,2.66547974,1977.1,1976.3,0.49735217]
[1770990817972,2.66547974,1977.1,1976.4,1.26492612]
[1770990818174,2.66548307,1977.1,1976.4,1.26492612]
[1770990819377,2.66548307,1977.1,1976.3,1.26595162]
[1770990820244,3.15589672,1977.1,1976.3,0.001]
[1770990820449,2.66548307,1977.1,1976.3,0.001]
[1770990820649,0.49041365,1977.0,1976.3,0.001]
[1770990822479,1.2646062,1976.9,1976.3,0.001]
[1770990823554,1.75501985,1976.9,1976.3,0.001]
[1770990824863,0.49041365,1976.8,1976.3,0.001]
[1770990825467,1.89141365,1976.7,1976.3,0.001]
[1770990825668,1.89141365,1976.7,1976.0,0.00153886]
[1770990826480,1.26479813,1976.6,1976.0,0.00153886]
[1770990826782,1.75521178,1976.6,1976.0,0.00153886]
[1770990827094,1.26479813,1976.6,1976.0,0.00153886]
[1770990827881,5.5496062,1976.9,1976.0,0.00153886]
[1770990827882,0.49041365,1977.1,1976.0,0.00153886]
[1770990828196,0.49041365,1976.9,1976.0,0.00153886]
[1770990828602,0.49041365,1976.7,1976.0,0.00153886]
[1770990828886,1.401,1976.6,1976.0,0.00153886]
[1770990829858,1.401,1976.5,1976.0,0.00153886]
[1770990830470,1.401,1976.5,1976.1,0.001]
[1770990830675,0.912,1976.8,1976.1,0.001]
[1770990830877,3.57772044,1976.8,1976.1,0.001]
[1770990834704,3.57772044,1976.8,1976.1,0.49735217]
[1770990835200,3.57768849,1976.8,1976.1,0.49735217]
[1770990835817,2.66668849,1976.8,1976.1,0.49735217]
[1770990835975,2.66668849,1976.8,1976.1,0.001]
[1770990837193,2.66668849,1976.8,1976.1,1.26611816]
[1770990837587,2.66668849,1976.8,1976.1,0.49735217]
[1770990839500,3.15710214,1976.8,1976.1,0.001]
[1770990839800,0.49041365,1976.7,1976.1,0.001]
[1770990840170,2.66668849,1976.8,1976.1,0.001]
[1770990840375,0.49041365,1976.7,1976.1,0.001]
[1770990840902,0.49041365,1976.7,1975.5,1.73593757]
[1770990841216,2.66668849,1976.8,1975.6,0.47048936]
[1770990841372,0.45281321,1976.7,1975.7,1.73586365]
[1770990841796,2.66668849,1976.8,1975.8,0.47048936]
[1770990842116,0.45281321,1976.7,1975.6,0.47048936]
[1770990842408,0.45281321,1976.7,1975.7,0.47048936]
[1770990843405,0.45281321,1976.5,1975.4,1.73605582]
[1770990843606,1.405,1976.4,1975.7,0.001]
[1770990844307,1.85781321,1976.4,1975.7,0.001]
[1770990845405,0.45281321,1976.2,1975.7,0.001]
[1770990845707,1.36481321,1976.2,1975.7,0.001]
[1770990846004,0.45281321,1976.1,1975.5,0.001]
[1770990846173,1.85681321,1976.0,1975.5,0.001]
[1770990846375,0.45281321,1975.9,1975.5,0.001]
[1770990846801,0.45281321,1975.9,1975.3,0.001]
[1770990847498,1.26531025,1975.8,1975.3,0.001]
[1770990848311,1.26529159,1975.9,1975.3,0.001]
[1770990848897,1.26529159,1975.9,1975.0,0.00253886]
[1770990848898,0.45281321,1975.8,1975.0,0.00253886]
[1770990849185,0.45281321,1975.8,1974.8,0.47048936]
[1770990849386,1.26529159,1975.9,1974.9,1.73637624]
[1770990849712,2.76981321,1975.8,1974.7,1.26596795]
[1770990849911,0.45281321,1975.7,1974.7,1.73645731]
[1770990850212,2.317,1975.8,1974.8,0.47048936]
[1770990850785,2.76981321,1975.8,1974.8,0.47048936]
[1770990851607,1.7181875,1975.7,1974.6,0.47048936]
[1770990851802,1.7181875,1975.7,1974.6,5.53472309]
[1770990851980,1.7181875,1975.7,1974.6,5.06423373]
[1770990852180,1.26537429,1975.7,1974.7,0.47048936]
[1770990853382,1.7181875,1975.7,1974.7,0.47048936]
[1770990853612,1.7181875,1975.7,1974.7,1.73647423]
[1770990855011,1.7181875,1975.7,1974.7,1.26598487]
[1770990855190,1.7181875,1975.7,1974.8,0.47048936]
[1770990855517,1.26537429,1975.7,1974.8,0.47048936]
[1770990855686,1.407,1975.6,1974.9,1.26588688]
[1770990856188,1.407,1975.6,1975.0,0.47048936]
[1770990857620,1.2655024,1975.5,1974.8,0.001]
[1770990858140,1.2655024,1975.5,1974.8,0.47148936]
[1770990858312,1.2655024,1975.5,1974.8,0.001]
[1770990860864,1.71831561,1975.5,1974.8,0.001]
[1770990862328,1.2655024,1975.5,1974.8,0.001]
[1770990862829,2.67248215,1975.6,1974.9,0.47048936]
[1770990863444,2.67248215,1975.6,1974.8,0.001]
[1770990863445,3.12529536,1975.6,1974.8,0.001]
[1770990864806,2.67248215,1975.6,1974.8,0.47148936]
[1770990866919,2.67248215,1975.6,1974.8,1.73743397]
[1770990867153,2.67248215,1975.6,1974.8,1.73743602]
[1770990869034,2.67248215,1975.6,1974.9,0.47048936]
[1770990869236,2.67246371,1975.6,1974.9,0.47148936]
[1770990869637,0.002,1975.5,1974.9,0.47148936]
[1770990871051,0.002,1975.5,1975.0,1.26582278]
[1770990871921,1.26529084,1975.9,1975.1,0.47869315]
[1770990872124,1.407,1975.8,1975.1,0.47869315]
[1770990872543,0.47196554,1975.7,1974.9,1.26688057]
[1770990872728,1.407,1975.8,1974.9,1.74557372]
[1770990873043,1.407,1975.8,1975.0,0.47869315]
[1770990873240,1.26537429,1975.7,1975.1,1.26575869]
[1770990873452,1.26537429,1975.7,1975.0,1.74447004]
[1770990874028,1.26537429,1975.7,1975.0,0.47869315]
[1770990874276,1.26537429,1975.7,1975.0,1.74449717]
[1770990874428,2.67235672,1975.8,1975.1,0.47869315]
[1770990875627,2.67235672,1975.8,1975.2,1.74438776]
[1770990875828,1.407,1975.8,1975.3,0.47869315]
[1770990876358,0.00153886,1976.0,1975.3,0.47869315]
[1770990876549,1.26672764,1976.0,1975.3,0.47869315]
[1770990877326,1.26672764,1976.0,1975.1,1.26570816]
[1770990878122,1.76669954,1976.0,1975.1,1.26570816]
[1770990878327,0.4999719,1975.9,1975.1,1.26570816]
[1770990879971,1.26531025,1975.8,1975.1,0.45451762]
[1770990881261,3.17128215,1975.8,1974.9,0.001]
[1770990882133,0.4999719,1975.7,1974.9,0.001]
[1770990882438,0.4999719,1975.7,1975.2,0.001]
[1770990883772,2.67331025,1975.8,1975.2,0.001]
[1770990884069,0.4999719,1975.7,1975.2,0.001]
[1770990884966,1.26543834,1975.6,1975.2,0.001]
[1770990886439,1.76541024,1975.6,1975.2,0.001]
[1770990886863,10.08683697,1975.6,1975.2,0.001]
[1770990887165,10.08683697,1975.6,1975.0,0.001]
[1770990887374,0.4999719,1975.5,1975.0,0.001]
[1770990887574,1.41,1975.4,1975.0,0.001]
[1770990889046,1.26563053,1975.3,1975.0,0.001]
[1770990889948,1.41,1975.4,1975.0,0.001]
[1770990890452,1.41,1975.4,1975.0,0.45551762]
[1770990891268,2.67557531,1975.4,1975.0,0.001]
[1770990891573,1.41,1975.4,1975.0,0.45551762]
[1770990891776,2.67557041,1975.4,1975.0,0.001]
[1770990895278,3.17554231,1975.4,1975.1,0.001]
[1770990895479,0.002,1975.3,1975.1,0.001]
[1770990899454,0.002,1975.3,1975.0,0.001]
[1770990900488,8.32035851,1975.1,1974.8,0.001]
[1770990900788,1.437,1975.1,1974.8,0.45262049]
[1770990900959,8.32235851,1975.3,1974.9,0.45162049]
[1770990900960,0.002,1975.3,1974.9,0.45162049]
[1770990901366,8.32035851,1975.7,1974.9,0.45162049]